bitfinex-derivatives/quotes_BTCF0:USTF0_20241109
["timestamp","ask_amount","ask_price","bid_price","bid_amount"]
[1731188166137,0.1659971,76440.0,76439.0,0.52351465]
[1731188168533,0.1659971,76440.0,76439.0,0.16271465]
[1731188168845,0.1659971,76440.0,76439.0,0.52351465]
[1731188170738,0.1659971,76440.0,76439.0,0.58864293]
[1731188171436,0.2313781,76440.0,76439.0,0.426182]
[1731188176638,0.2313781,76440.0,76439.0,0.3608]
[1731188176639,0.34476918,76440.0,76439.0,0.3608]
[1731188177930,0.34476918,76440.0,76436.0,0.03910374]
[1731188178141,0.34476918,76440.0,76434.0,0.0061]
[1731188178142,0.0315,76439.0,76434.0,0.04520374]
[1731188178336,0.0315,76439.0,76434.0,0.0061]
[1731188178531,0.065385,76435.0,76434.0,0.0061]
[1731188178731,0.19547002,76438.0,76433.0,0.03910374]
[1731188178732,0.065386,76434.0,76433.0,0.03910374]
[1731188178936,0.065388,76432.0,76431.0,0.3608]
[1731188179529,0.065388,76432.0,76431.0,0.42592828]
[1731188179928,0.065388,76432.0,76431.0,0.52339502]
[1731188180138,0.06718366,76432.0,76431.0,0.52339502]
[1731188180330,0.06718366,76432.0,76431.0,0.3608]
[1731188181538,0.06818366,76432.0,76431.0,0.3608]
[1731188185149,0.26430177,76432.0,76431.0,0.3608]
[1731188187443,0.33713681,76432.0,76431.0,0.3608]
[1731188193437,0.27174881,76432.0,76429.0,0.04517901]
[1731188193647,0.06539,76429.0,76428.0,0.07007698]
[1731188193854,0.13822504,76429.0,76428.0,0.03907901]
[1731188194144,0.33720134,76429.0,76428.0,0.03907901]
[1731188194546,0.065391,76428.0,76427.0,0.065392]
[1731188194950,0.2610266,76428.0,76427.0,0.065392]
[1731188195252,0.26282226,76428.0,76427.0,0.065392]
[1731188196654,0.26282226,76428.0,76427.0,0.09676754]
[1731188197954,0.26382226,76428.0,76427.0,0.09676754]
[1731188198755,0.26382226,76428.0,76427.0,1.09676754]
[1731188205746,0.26382226,76428.0,76427.0,1.16189582]
[1731188205947,0.26382226,76428.0,76427.0,1.09676754]
[1731188206252,0.26382226,76428.0,76427.0,1.16189582]
[1731188206457,0.26382226,76428.0,76427.0,1.19511096]
[1731188206954,0.26382226,76428.0,76427.0,1.26030921]
[1731188207147,0.26382226,76428.0,76427.0,1.19511096]
[1731188209446,0.26382226,76428.0,76427.0,1.09676754]
[1731188216769,0.26382226,76428.0,76427.0,1.19519726]
[1731188222771,0.2311007,76428.0,76427.0,1.19519726]
[1731188223272,0.2311007,76428.0,76427.0,1.19643743]
[1731188224677,0.2311007,76428.0,76427.0,1.09676754]
[1731188228386,0.19843126,76428.0,76427.0,1.09676754]
[1731188228776,0.19843126,76428.0,76427.0,1.2616733]
[1731188229878,0.19843126,76428.0,76427.0,1.16202628]
[1731188231277,0.19843126,76428.0,76427.0,1.09676754]
[1731188231675,0.19843126,76428.0,76427.0,1.19633433]
[1731188235175,0.26382226,76428.0,76427.0,1.19633433]
[1731188238689,0.26382226,76428.0,76427.0,1.19622227]
[1731188242588,0.3366573,76428.0,76427.0,1.19622227]
[1731188243479,0.3366573,76428.0,76427.0,1.09676754]
[1731188243681,0.3366573,76428.0,76427.0,1.19629748]
[1731188246687,0.3366573,76428.0,76427.0,1.1489892]
[1731188248286,0.3366573,76428.0,76427.0,1.14898963]
[1731188249289,0.3366573,76428.0,76427.0,1.14898836]
[1731188250693,0.3366573,76428.0,76427.0,1.09676754]
[1731188250899,0.3366573,76428.0,76427.0,1.14898836]
[1731188254398,0.40949234,76428.0,76427.0,1.0]
[1731188255101,0.40949234,76428.0,76427.0,1.06527708]
[1731188255596,0.40949234,76428.0,76427.0,1.0]
[1731188256289,0.40849234,76428.0,76427.0,1.0]
[1731188256597,0.40949234,76428.0,76427.0,1.0]
[1731188258095,0.50325234,76428.0,76427.0,1.0]
[1731188262003,0.50325234,76428.0,76427.0,1.03916207]
[1731188262400,0.50325234,76428.0,76427.0,1.0]
[1731188262698,0.96860738,76428.0,76427.0,0.61410978]
[1731188263003,0.89577234,76428.0,76427.0,0.61410978]
[1731188263701,0.92103963,76428.0,76427.0,0.61410978]
[1731188263897,0.77436955,76428.0,76427.0,0.61410978]
[1731188264101,0.50225234,76428.0,76427.0,0.61410978]
[1731188264694,0.89477234,76428.0,76427.0,0.61410978]
[1731188267216,1.25557234,76428.0,76427.0,0.61410978]
[1731188268501,0.86305234,76428.0,76427.0,0.61410978]
[1731188268701,1.25557234,76428.0,76427.0,0.61410978]
[1731188269096,0.86305234,76428.0,76427.0,0.61410978]
[1731188270108,0.86305234,76428.0,76427.0,0.65321528]
[1731188271204,0.50225234,76428.0,76427.0,0.65321528]
[1731188271409,0.86305234,76428.0,76427.0,0.65321528]
[1731188276918,0.89315929,76428.0,76427.0,0.61410978]
[1731188277112,0.74748921,76428.0,76427.0,0.61410978]
[1731188277420,0.89315929,76428.0,76427.0,0.61410978]
[1731188282716,0.53235929,76428.0,76427.0,0.61410978]
[1731188283018,0.89315929,76428.0,76427.0,0.61410978]
[1731188286023,0.53235929,76428.0,76427.0,0.61410978]
[1731188286222,0.89315929,76428.0,76427.0,0.61410978]
[1731188292221,0.62362226,76428.0,76427.0,0.61410978]
[1731188292422,0.7902173,76428.0,76427.0,0.61410978]
[1731188292923,0.7902173,76428.0,76427.0,0.66632587]
[1731188294336,0.86305234,76428.0,76427.0,0.66632587]
[1731188294729,0.7902173,76428.0,76427.0,0.66632587]
[1731188294928,0.7902173,76428.0,76427.0,0.61410978]
[1731188295331,0.7902173,76428.0,76427.0,0.66632587]
[1731188296030,0.86305234,76428.0,76427.0,0.61410978]
[1731188299830,0.86305234,76428.0,76427.0,0.65326445]
[1731188302131,0.86305234,76428.0,76427.0,0.61410978]
[1731188307442,0.86305234,76428.0,76427.0,0.65326012]
[1731188307636,0.86305234,76428.0,76427.0,0.61410978]
[1731188308045,0.93588738,76428.0,76427.0,0.30185117]
[1731188308233,0.065396,76422.0,76421.0,0.03915034]
[1731188308442,0.065398,76420.0,76419.0,0.03915034]
[1731188308641,0.065399,76419.0,76418.0,0.03915034]
[1731188308839,0.21106908,76419.0,76418.0,0.03915034]
[1731188309144,0.40889538,76419.0,76418.0,0.03915034]
[1731188309540,0.40889538,76419.0,76417.0,0.03915034]
[1731188309541,0.0654,76418.0,76417.0,0.03915034]
[1731188309747,0.21107008,76418.0,76417.0,0.03915034]
[1731188309944,0.40825353,76418.0,76417.0,0.03915034]
[1731188310146,0.065401,76417.0,76416.0,0.03915034]
[1731188310451,0.065401,76416.0,76415.0,0.03915034]
[1731188310748,0.4085593,76416.0,76415.0,0.03915034]
[1731188310951,0.3431583,76416.0,76410.0,0.08391609]
[1731188311150,0.14567008,76411.0,76410.0,0.08391609]
[1731188311354,0.14746574,76411.0,76410.0,0.08391609]
[1731188311654,0.34495396,76411.0,76410.0,0.08391609]
[1731188312258,0.34495396,76411.0,76410.0,0.0317]
[1731188312451,0.41035996,76411.0,76410.0,0.0317]
[1731188314959,0.34495396,76411.0,76408.0,0.03912489]
[1731188315263,0.065407,76409.0,76408.0,0.03912489]
[1731188315556,0.26168084,76409.0,76408.0,0.03912489]
[1731188316353,0.2634765,76409.0,76408.0,0.03912489]
[1731188318055,0.2634765,76409.0,76407.0,0.39992489]
[1731188318252,0.1980695,76409.0,76407.0,0.39992489]
[1731188318453,0.06720366,76408.0,76407.0,0.39992489]
[1731188318862,0.26305668,76408.0,76407.0,0.39992489]
[1731188319956,0.26305668,76408.0,76407.0,0.3608]
[1731188320162,0.26305668,76408.0,76407.0,0.39991679]
[1731188322062,0.23032739,76408.0,76407.0,0.3608]
[1731188324964,0.23032739,76408.0,76405.0,0.065411]
[1731188325154,0.23032739,76408.0,76407.0,0.3608]
[1731188326462,0.30316243,76408.0,76407.0,0.3608]
[1731188327553,0.30316243,76408.0,76407.0,0.41295319]
[1731188328767,0.23032739,76408.0,76407.0,0.41295319]
[1731188329065,0.23032739,76408.0,76407.0,0.3608]
[1731188330164,0.23032739,76408.0,76407.0,0.39991965]
[1731188330466,0.19585302,76408.0,76407.0,0.426209]
[1731188330859,0.2682706,76411.0,76408.0,0.065408]
[1731188331166,0.26084256,76410.0,76408.0,0.065408]
[1731188331366,0.065407,76410.0,76408.0,0.065408]
[1731188331558,0.065407,76410.0,76409.0,0.065407]
[1731188331958,0.26271177,76410.0,76409.0,0.065407]
[1731188334059,0.26271177,76410.0,76409.0,0.11756653]
[1731188335859,0.26271177,76410.0,76409.0,0.065407]
[1731188336181,0.26271177,76410.0,76409.0,0.1175989]
[1731188336470,0.26271177,76410.0,76409.0,0.065407]
[1731188336657,0.33554681,76410.0,76409.0,0.0522319]
[1731188336856,0.065407,76409.0,76408.0,0.0522319]
[1731188337060,0.27013981,76410.0,76407.0,0.42607708]
[1731188337268,0.065408,76408.0,76407.0,0.42607708]
[1731188337465,0.065408,76408.0,76407.0,0.3608]
[1731188337671,0.26132592,76408.0,76407.0,0.3608]
[1731188338263,0.26132592,76408.0,76407.0,0.42607708]
[1731188338467,0.26132592,76408.0,76407.0,0.52553641]
[1731188339158,0.26132592,76408.0,76407.0,0.42607708]
[1731188339361,0.26132592,76408.0,76407.0,0.3608]
[1731188339974,0.26132592,76408.0,76407.0,0.42607708]
[1731188340167,0.26132592,76408.0,76407.0,0.3608]
[1731188343472,0.19591792,76408.0,76404.0,0.06527708]
[1731188343671,0.07283504,76405.0,76402.0,0.06527708]
[1731188343973,0.07283504,76405.0,76401.0,0.0061]
[1731188343974,0.065413,76402.0,76401.0,0.0061]
[1731188344171,0.065413,76402.0,76401.0,0.05223028]
[1731188344368,0.065413,76402.0,76400.0,0.1]
[1731188344369,0.065414,76401.0,76400.0,0.15223028]
[1731188344565,0.17124904,76401.0,76400.0,0.15223028]
[1731188344766,0.36856581,76401.0,76400.0,0.15223028]
[1731188345770,0.36856581,76401.0,76400.0,0.1]
[1731188351079,0.39999485,76401.0,76400.0,0.1]
[1731188356984,0.32715981,76401.0,76400.0,0.1]
[1731188357177,0.39999485,76401.0,76400.0,0.1]
[1731188359289,0.36699485,76401.0,76400.0,0.4608]
[1731188359475,0.33556581,76401.0,76400.0,0.4608]
[1731188359678,0.33556581,76401.0,76400.0,0.526215]
[1731188359877,0.33556581,76401.0,76400.0,0.4608]
[1731188362483,0.33556581,76401.0,76400.0,0.1]
[1731188362787,0.33556581,76401.0,76400.0,0.4608]
[1731188364979,0.33556581,76401.0,76400.0,0.51303028]
[1731188366193,0.33556581,76401.0,76400.0,0.4608]
[1731188367986,0.33556581,76401.0,76400.0,0.49994445]
[1731188369391,0.33556581,76401.0,76400.0,0.13914445]
[1731188369593,0.33556581,76401.0,76400.0,0.49994445]
[1731188370588,0.33556581,76401.0,76400.0,0.4608]
[1731188371182,0.33556581,76401.0,76400.0,0.526215]
[1731188373788,0.19731677,76401.0,76400.0,0.526215]
[1731188373991,0.19731677,76401.0,76400.0,0.59905004]
[1731188374295,0.16458579,76401.0,76400.0,0.62591358]
[1731188374494,0.16458579,76401.0,76400.0,0.70404806]
[1731188374899,0.16458579,76401.0,76400.0,0.62591358]
[1731188379695,0.06220339,76413.0,76400.0,0.69874862]
[1731188379696,0.12474,76413.0,76400.0,0.69874862]
[1731188379900,0.065406,76411.0,76410.0,0.065406]
[1731188380399,0.26179639,76411.0,76410.0,0.065406]
[1731188383496,0.33463143,76411.0,76410.0,0.065406]
[1731188390910,0.33463143,76411.0,76410.0,0.426206]
[1731188396306,0.40746647,76411.0,76410.0,0.3608]
[1731188396510,0.065408,76409.0,76407.0,0.065409]
[1731188396805,0.34206047,76411.0,76407.0,0.065409]
[1731188396806,0.19745244,76408.0,76407.0,0.065409]
[1731188397113,0.065408,76408.0,76407.0,0.065409]
[1731188397310,0.065408,76408.0,76407.0,0.1176159]
[1731188397505,0.26286044,76408.0,76407.0,0.1176159]
[1731188400197,0.26286044,76408.0,76407.0,0.065409]
[1731188400607,0.26286044,76408.0,76407.0,0.11760879]
[1731188400802,0.26286044,76408.0,76407.0,0.065409]
[1731188418623,0.06541,76407.0,76404.0,0.06525863]
[1731188418830,0.07283504,76406.0,76404.0,0.13066963]
[1731188419128,0.27021471,76406.0,76404.0,0.13066963]
[1731188419327,0.27021471,76406.0,76404.0,0.065411]
[1731188419526,0.27021471,76406.0,76403.0,0.05222702]
[1731188419730,0.27021471,76406.0,76405.0,0.065411]
[1731188422130,0.33562471,76406.0,76405.0,0.065411]
[1731188424837,0.33562471,76406.0,76405.0,0.11763802]
[1731188427422,0.33562471,76406.0,76405.0,0.23036922]
[1731188434540,0.33562471,76406.0,76405.0,0.16511059]
[1731188440232,0.065404,76413.0,76405.0,0.59874563]
[1731188440432,0.065404,76413.0,76412.0,0.49149526]
[1731188440944,0.26175456,76413.0,76412.0,0.49149526]
[1731188441140,0.26175456,76413.0,76412.0,0.59118371]
[1731188441333,0.26175456,76413.0,76412.0,0.426205]
[1731188445246,0.26175456,76413.0,76412.0,0.46533736]
[1731188446457,0.26175456,76413.0,76412.0,0.426205]
[1731188446641,0.26175456,76413.0,76412.0,0.46533325]
[1731188448641,0.3345896,76413.0,76412.0,0.46533325]
[1731188448841,0.2691856,76413.0,76412.0,0.46533325]
[1731188449639,0.2691856,76413.0,76412.0,0.426205]
[1731188454253,0.19635056,76413.0,76412.0,0.426205]
[1731188454645,0.065401,76417.0,76416.0,0.065401]
[1731188454839,0.26159721,76417.0,76416.0,0.065401]
[1731188455042,0.065401,76417.0,76416.0,0.065401]
[1731188455242,0.033,76421.0,76412.0,0.3669]
[1731188455451,0.06736049,76422.0,76421.0,0.065397]
[1731188455845,0.26473343,76422.0,76421.0,0.065397]
[1731188465247,0.065397,76421.0,76420.0,0.3608]
[1731188465456,0.13823204,76421.0,76420.0,0.3608]
[1731188465653,0.3346169,76421.0,76420.0,0.3608]
[1731188466650,0.065399,76419.0,76418.0,0.05215454]
[1731188466955,0.19560804,76419.0,76417.0,0.05215454]
[1731188467264,0.13823504,76418.0,76417.0,0.11756861]
[1731188467447,0.13823504,76418.0,76417.0,0.05216861]
[1731188467653,0.33501777,76418.0,76416.0,0.05216861]
[1731188467957,0.07283504,76417.0,76416.0,0.05216861]
[1731188468353,0.33576601,76417.0,76416.0,0.05216861]
[1731188468658,0.33576601,76417.0,76413.0,0.06408926]
[1731188469059,0.33576601,76417.0,76415.0,0.065402]
[1731188470163,0.33576601,76417.0,76416.0,0.05218548]
[1731188470360,0.33576601,76417.0,76415.0,0.065402]
[1731188473459,0.36647762,76417.0,76415.0,0.065402]
[1731188478376,0.33576601,76417.0,76415.0,0.065402]
[1731188480872,0.26293097,76417.0,76415.0,0.065402]
[1731188481665,0.065401,76416.0,76415.0,0.065402]
[1731188481966,0.26200071,76416.0,76415.0,0.065402]
[1731188482161,0.26200071,76416.0,76415.0,0.11762871]
[1731188482570,0.26200071,76416.0,76415.0,0.065402]
[1731188482974,0.26200071,76416.0,76415.0,0.11762871]
[1731188487362,0.26200071,76416.0,76415.0,0.11765532]
[1731188487766,0.26200071,76416.0,76415.0,0.23037823]
[1731188488475,0.26200071,76416.0,76415.0,0.16508797]
[1731188489766,0.26200071,76416.0,76415.0,0.23040615]
[1731188490381,0.26200071,76416.0,76415.0,0.16508797]
[1731188494781,0.26200071,76416.0,76415.0,0.065402]
[1731188502703,0.26200071,76416.0,76415.0,0.16508798]
[1731188503106,0.19659971,76416.0,76415.0,0.16508798]
[1731188503301,0.065398,76421.0,76420.0,0.065397]
[1731188503699,0.26224354,76421.0,76420.0,0.065397]
[1731188504198,0.19684554,76421.0,76420.0,0.065397]
[1731188504400,0.065394,76425.0,76424.0,0.065395]
[1731188504796,0.26273742,76425.0,76424.0,0.065395]
[1731188507101,0.26273742,76425.0,76424.0,0.11764888]
[1731188507899,0.26273742,76425.0,76424.0,0.11764652]
[1731188509108,0.26273742,76425.0,76424.0,0.065395]
[1731188511316,0.33557246,76425.0,76424.0,0.065395]
[1731188521712,0.26273742,76425.0,76424.0,0.065395]
[1731188524016,0.19734342,76425.0,76424.0,0.065395]
[1731188524412,0.065391,76428.0,76424.0,0.065395]
[1731188524607,0.065391,76428.0,76427.0,0.03917775]
[1731188524907,0.1949781,76427.0,76425.0,0.065393]
[1731188525216,0.065391,76428.0,76425.0,0.065393]
[1731188525413,0.065391,76428.0,76427.0,0.03917744]
[1731188525816,0.2623949,76428.0,76427.0,0.03917744]
[1731188529126,0.2623949,76428.0,76425.0,0.065393]
[1731188530924,0.2623949,76428.0,76426.0,0.065392]
[1731188534226,0.2623949,76428.0,76427.0,0.03919277]
[1731188535520,0.2623949,76428.0,76426.0,0.065392]
[1731188538123,0.2623949,76428.0,76427.0,0.065392]
[1731188539226,0.2623949,76428.0,76427.0,0.10458438]
[1731188540527,0.2623949,76428.0,76427.0,0.065392]
[1731188547734,0.2623949,76428.0,76427.0,0.10456643]
[1731188550646,0.2623949,76428.0,76427.0,0.065392]
[1731188551636,0.2623949,76428.0,76427.0,0.10456643]
[1731188552046,0.2623949,76428.0,76427.0,0.065392]
[1731188552750,0.2623949,76428.0,76427.0,0.10456643]
[1731188553244,0.065392,76427.0,76426.0,0.03917443]
[1731188553635,0.19642623,76427.0,76425.0,0.3608]
[1731188553840,0.065393,76426.0,76425.0,0.3608]
[1731188554352,0.26181923,76426.0,76425.0,0.3608]
[1731188555153,0.065394,76425.0,76423.0,0.41303257]
[1731188555447,0.19589421,76424.0,76423.0,0.47842757]
[1731188555748,0.19589421,76424.0,76423.0,0.49151628]
[1731188556537,0.19589421,76424.0,76423.0,0.59119158]
[1731188556744,0.19589421,76424.0,76423.0,0.5258703]
[1731188557540,0.19589421,76424.0,76423.0,0.59119769]
[1731188557847,0.065395,76424.0,76423.0,0.59119769]
[1731188558042,0.065395,76424.0,76423.0,0.49152239]
[1731188558235,0.26093423,76424.0,76423.0,0.426195]
[1731188558435,0.26093423,76424.0,76423.0,0.49152239]
[1731188558645,0.26093423,76424.0,76423.0,0.426195]
[1731188558840,0.26093423,76424.0,76423.0,0.49152239]
[1731188559044,0.26093423,76424.0,76423.0,0.426195]
[1731188560546,0.26093423,76424.0,76423.0,0.065395]
[1731188562850,0.26093423,76424.0,76423.0,0.11765047]
[1731188563045,0.26093423,76424.0,76423.0,0.065395]
[1731188570970,0.26093423,76424.0,76421.0,0.0966399]
[1731188570971,0.065396,76422.0,76421.0,0.0966399]
[1731188571151,0.065396,76422.0,76421.0,0.19631958]
[1731188578165,0.065396,76422.0,76421.0,0.13099219]
[1731188578773,0.065396,76422.0,76421.0,0.13099092]
[1731188579666,0.065396,76422.0,76421.0,0.19638792]
[1731188580863,0.065396,76422.0,76421.0,0.26170288]
[1731188581467,0.065396,76422.0,76421.0,0.19638792]
[1731188581876,0.065396,76422.0,76421.0,0.26170565]
[1731188582381,0.065396,76422.0,76421.0,0.19638792]
[1731188583679,0.065396,76422.0,76421.0,0.19638723]
[1731188585676,0.065396,76422.0,76421.0,0.09670951]
[1731188588379,0.065396,76422.0,76421.0,0.45750951]
[1731188592778,0.065396,76422.0,76421.0,0.55718666]
[1731188593889,0.065396,76422.0,76421.0,0.55718676]
[1731188594084,0.065396,76422.0,76421.0,0.19638676]
[1731188595493,0.065396,76422.0,76421.0,0.09670951]
[1731188601784,0.065396,76422.0,76421.0,0.14894842]
[1731188603589,0.065396,76422.0,76421.0,0.09670951]
[1731188604192,0.065396,76422.0,76421.0,0.065397]
[1731188604383,0.065398,76420.0,76419.0,0.3608]
[1731188604887,0.26283188,76420.0,76419.0,0.3608]
[1731188605091,0.19743388,76420.0,76417.0,0.13069863]
[1731188605286,0.065399,76419.0,76417.0,0.13069863]
[1731188605485,0.065399,76419.0,76418.0,0.3608]
[1731188605799,0.26186333,76419.0,76418.0,0.3608]
[1731188606188,0.26186333,76419.0,76418.0,0.4262]
[1731188607791,0.26186333,76419.0,76418.0,0.52587946]
[1731188615486,0.26186333,76419.0,76418.0,0.16508034]
[1731188615695,0.26186333,76419.0,76418.0,0.52588034]
[1731188618486,0.3608,76439.0,76427.0,0.065392]
[1731188618694,0.0318,76435.0,76431.0,0.07283504]
[1731188618999,0.26280536,76432.0,76431.0,0.07283504]
[1731188621600,0.26280536,76432.0,76430.0,0.065389]
[1731188621800,0.26280536,76432.0,76431.0,0.07283504]
[1731188622502,0.26280536,76432.0,76431.0,0.43363504]
[1731188622898,0.26280536,76432.0,76431.0,0.47275315]
[1731188623098,0.26280536,76432.0,76431.0,0.43363504]
[1731188628908,0.26280536,76432.0,76431.0,0.07283504]
[1731188629103,0.26280536,76432.0,76431.0,0.43363504]
[1731188629507,0.26280536,76432.0,76431.0,0.07283504]
[1731188629708,0.26280536,76432.0,76431.0,0.43363504]
[1731188630104,0.26280536,76432.0,76431.0,0.3608]
[1731188630808,0.26280536,76432.0,76430.0,0.065389]
[1731188631112,0.26280536,76432.0,76430.0,0.10450711]
[1731188635010,0.26280536,76432.0,76430.0,0.03911811]
[1731188635317,0.26280536,76432.0,76431.0,0.065389]
[1731188636513,0.26280536,76432.0,76431.0,0.10450711]
[1731188637029,0.26280536,76432.0,76431.0,0.065389]
[1731188638518,0.19741736,76432.0,76431.0,0.065389]
[1731188639024,0.1966871,76434.0,76433.0,0.065386]
[1731188639317,0.097185,76435.0,76434.0,0.065386]
[1731188639711,0.29316155,76435.0,76434.0,0.065386]
[1731188640109,0.22777655,76435.0,76434.0,0.065386]
[1731188645123,0.22777655,76435.0,76434.0,0.11754348]
[1731188646316,0.22777655,76435.0,76434.0,0.065386]
[1731188646519,0.22777655,76435.0,76434.0,0.11754348]
[1731188646916,0.22777655,76435.0,76434.0,0.065386]
[1731188663234,0.0318,76435.0,76434.0,0.13065659]
[1731188663428,0.0318,76435.0,76434.0,0.23031417]
[1731188664537,0.0318,76435.0,76434.0,0.13065659]
[1731188664931,0.0318,76435.0,76434.0,0.2303138]
[1731188665733,0.0318,76435.0,76434.0,0.13065659]
[1731188666237,0.0318,76435.0,76434.0,0.23031409]
[1731188666431,0.0318,76435.0,76434.0,0.13065659]
[1731188666631,0.0318,76435.0,76434.0,0.49145659]
[1731188667134,0.0318,76435.0,76434.0,0.59111394]
[1731188667437,0.0318,76435.0,76434.0,0.52584335]
[1731188668143,0.0657,76445.0,76434.0,0.52584335]
[1731188668339,0.0657,76445.0,76444.0,0.13821304]
[1731188668643,0.26072469,76445.0,76444.0,0.13821304]
[1731188669929,0.22822469,76445.0,76444.0,0.13821304]
[1731188670134,0.00196311,76446.0,76444.0,0.07283504]
[1731188670334,0.00196311,76446.0,76445.0,0.065377]
[1731188670843,0.0603,76456.0,76445.0,0.065377]
[1731188670844,0.0603,76456.0,76455.0,0.065368]
[1731188671030,0.0603,76456.0,76455.0,0.17729969]
[1731188671228,0.2566524,76456.0,76455.0,0.13820304]
[1731188671633,0.2566524,76456.0,76455.0,0.065368]
[1731188672041,0.2566524,76456.0,76455.0,0.13820304]
[1731188674049,0.2566524,76456.0,76455.0,0.065368]
[1731188676447,0.2566524,76456.0,76455.0,0.09612323]
[1731188679146,0.1963524,76456.0,76455.0,0.09612323]
[1731188679347,0.03135832,76464.0,76463.0,0.065361]
[1731188679648,0.0625,76468.0,76467.0,0.065358]
[1731188679850,0.0625,76468.0,76467.0,0.13819304]
[1731188680038,0.25875496,76468.0,76467.0,0.13819304]
[1731188681043,0.25875496,76468.0,76467.0,0.49899304]
[1731188682949,0.25875496,76468.0,76467.0,0.53118281]
[1731188684958,0.0306,76468.0,76467.0,0.60401785]
[1731188685256,0.0313,76478.0,76470.0,0.065355]
[1731188685455,0.0313,76478.0,76477.0,0.13818404]
[1731188685845,0.22651911,76478.0,76477.0,0.13818404]
[1731188687053,0.22651911,76478.0,76477.0,0.065349]
[1731188687748,0.0313,76478.0,76477.0,0.065349]
[1731188689656,0.0313,76478.0,76477.0,0.13818404]
[1731188697049,0.0313,76478.0,76477.0,0.065349]
[1731188697374,0.0313,76478.0,76477.0,0.13818404]
[1731188699455,0.0313,76478.0,76477.0,0.065349]
[1731188699659,0.0313,76478.0,76477.0,0.13818404]
[1731188701677,0.0313,76478.0,76477.0,0.065349]
[1731188706272,0.0313,76478.0,76477.0,0.11747786]
[1731188707879,0.0313,76478.0,76477.0,0.065349]
[1731188709280,0.0313,76478.0,76477.0,0.13818404]
[1731188710076,0.03092717,76490.0,76477.0,0.14567008]
[1731188710272,0.0325,76493.0,76492.0,0.065337]
[1731188710474,0.0325,76493.0,76492.0,0.11737461]
[1731188710678,0.0325,76493.0,76492.0,0.065337]
[1731188711480,0.097836,76493.0,76492.0,0.065337]
[1731188711683,0.097836,76493.0,76491.0,0.05201093]
[1731188711684,0.065337,76492.0,76491.0,0.05201093]
[1731188711874,0.22819541,76493.0,76490.0,0.05201093]
[1731188712068,0.065337,76491.0,76490.0,0.05201093]
[1731188712274,0.065337,76491.0,76489.0,0.05201383]
[1731188712484,0.26213301,76491.0,76489.0,0.05201383]
[1731188713175,0.26213301,76491.0,76488.0,0.11735383]
[1731188713375,0.26213301,76491.0,76488.0,0.06534]
[1731188714887,0.19679601,76491.0,76488.0,0.06534]
[1731188715075,0.065338,76490.0,76488.0,0.06534]
[1731188715385,0.19584011,76489.0,76488.0,0.06534]
[1731188716479,0.19584011,76489.0,76486.0,0.47332944]
[1731188716480,0.065341,76487.0,76486.0,0.47332944]
[1731188716681,0.3608,76487.0,76484.0,0.03902135]
[1731188716873,0.55662097,76487.0,76483.0,0.03902135]
[1731188717183,0.065343,76484.0,76483.0,0.03902135]
[1731188717383,0.065343,76484.0,76480.0,0.19019487]
[1731188717384,0.065343,76484.0,76481.0,0.065346]
[1731188717576,0.26116397,76484.0,76481.0,0.10436857]
[1731188717975,0.26116397,76484.0,76481.0,0.03902257]
[1731188718272,0.26116397,76484.0,76482.0,0.065345]
[1731188720585,0.26116397,76484.0,76483.0,0.05202726]
[1731188721283,0.26116397,76484.0,76482.0,0.065345]
[1731188721480,0.26116397,76484.0,76483.0,0.05202797]
[1731188722180,0.26116397,76484.0,76483.0,0.05202783]
[1731188722373,0.26116397,76484.0,76482.0,0.065345]
[1731188722574,0.26116397,76484.0,76483.0,0.05202777]
[1731188722973,0.26865601,76484.0,76482.0,0.05202777]
[1731188723179,0.13793504,76483.0,76481.0,0.05202777]
[1731188723375,0.065345,76482.0,76481.0,0.05202777]
[1731188723575,0.19736267,76482.0,76480.0,0.41282777]
[1731188723780,0.096346,76481.0,76480.0,0.41282777]
[1731188724283,0.29229332,76481.0,76480.0,0.41282777]
[1731188724486,0.29229332,76481.0,76480.0,0.3608]
[1731188725274,0.29229332,76481.0,76480.0,0.41282777]
[1731188725690,0.29229332,76481.0,76480.0,0.3608]
[1731188725984,0.22694732,76481.0,76479.0,0.05203522]
[1731188726173,0.065348,76479.0,76478.0,0.05203522]
[1731188726379,0.065349,76478.0,76477.0,0.05203522]
[1731188726781,0.26125388,76478.0,76477.0,0.05203522]
[1731188728285,0.065349,76477.0,76476.0,0.039034]
[1731188728584,0.06535,76476.0,76475.0,0.039034]
[1731188728980,0.26260116,76476.0,76475.0,0.039034]
[1731188729180,0.26260116,76476.0,76474.0,0.065352]
[1731188729386,0.26260116,76476.0,76475.0,0.03903305]
[1731188729887,0.2700862,76476.0,76475.0,0.03903433]
[1731188730185,0.2700862,76476.0,76470.0,0.0061]
[1731188730186,0.065354,76471.0,76470.0,0.0061]
[1731188730390,0.065355,76470.0,76469.0,0.03904428]
[1731188730777,0.22750479,76470.0,76466.0,0.03904546]
[1731188730978,0.06536,76465.0,76464.0,0.11051085]
[1731188731290,0.26164318,76465.0,76464.0,0.06536]
[1731188733983,0.19628318,76465.0,76463.0,0.3608]
[1731188734176,0.06536,76464.0,76463.0,0.3608]
[1731188735392,0.06536,76464.0,76463.0,0.39983193]
[1731188736782,0.26099815,76464.0,76463.0,0.3608]
[1731188736987,0.065361,76463.0,76462.0,0.05591255]
[1731188737387,0.26182423,76463.0,76462.0,0.05591255]
[1731188737589,0.55726323,76463.0,76461.0,0.00196163]
[1731188737787,0.13819704,76462.0,76461.0,0.00196163]
[1731188738289,0.33434013,76462.0,76461.0,0.00196163]
[1731188742679,0.42714013,76462.0,76461.0,0.00196163]
[1731188743083,0.43461317,76462.0,76458.0,0.0061]
[1731188743292,0.065367,76456.0,76454.0,0.0061]
[1731188743496,0.065372,76451.0,76449.0,0.0061]
[1731188743796,0.07283504,76449.0,76448.0,0.3608]
[1731188744295,0.334757,76449.0,76448.0,0.3608]
[1731188745088,0.334757,76449.0,76444.0,0.071477]
[1731188745089,0.065376,76447.0,76444.0,0.0061]
[1731188745396,0.07283504,76445.0,76441.0,0.06538]
[1731188745699,0.19717995,76444.0,76441.0,0.06538]
[1731188746190,0.19717995,76444.0,76440.0,0.3608]
[1731188746394,0.07283504,76441.0,76440.0,0.3608]
[1731188747196,0.07283504,76441.0,76434.0,0.0061]
[1731188747393,0.07283504,76441.0,76437.0,0.065383]
[1731188747394,0.13821504,76441.0,76437.0,0.065383]
[1731188749189,0.07283504,76441.0,76437.0,0.065383]
[1731188749399,0.26212472,76440.0,76437.0,0.065383]
[1731188752098,0.26212472,76440.0,76437.0,0.426183]
[1731188752498,0.26212472,76440.0,76438.0,0.065383]